[Event "AUT-ch U14 Boys 2022"]
[Site "Sankt Veit an der Glan"]
[Date "2022.04.11"]
[Round "3"]
[White "Roessler, Felix"]
[Black "Puschnig, Jason"]
[Result "1-0"]
[ECO "E12"]
[WhiteElo "1512"]
[BlackElo "1721"]
[Annotator "NA RC"]
[PlyCount "61"]
[EventDate "2022.04.11"]
[EventType "swiss"]
[EventCountry "AUT"]
[SourceTitle "playchess.com"]
[Source "ChessBase"]
[SourceQuality "1"]
[TimeControl "5400+30"]

1. d4 {[%emt 0:00:01]} d5 {[%emt 0:00:12]} 2. c4 {[%emt 0:00:05]} e6 {[%emt 0:00:14]} 3. Nc3 {[%emt 0:00:03]} Nf6 {[%emt 0:01:39]} 4. Nf3 {[%emt 0:00:07]} b6 {[%emt 0:02:42]} 5. Bg5 {[%emt 0:00:12]} Be7 {[%emt 0:01:50]} 6. e3 {[%emt 0:00:45]} Bb7 {[%emt 0:04:13]} 7. Rc1 {[%emt 0:00:37]} Nbd7 {[%emt 0:07:37]} 8. cxd5 {[%emt 0:02:35]} exd5 {[%emt 0:02:55]} 9. Bxf6 {[%emt 0:01:02]} Nxf6 {[%emt 0:03:54]} 10. Ne5 {[%emt 0:00:40]} Rc8 {[%emt 0:06:47]} 11. Qa4+ {[%emt 0:03:24]} c6 {[%emt 0:03:31]} 12. Qxa7 {[%emt 0:06:26]} Qc7 {[%emt 0:12:32]} 13. Nb5 {[%emt 0:04:24]} Bb4+ {[%emt 0:03:10]} 14. Kd1 {[%emt 0:01:15]} Qe7 {[%emt 0:03:39]} 15. Nc3 {[%emt 0:06:27]} Ba5 {[%emt 0:06:48]} 16. Ba6 {[%emt 0:01:58]} Bxa6 {[%emt 0:09:05]} 17. Qxa6 {[%emt 0:00:03]} O-O {[%emt 0:01:20]} 18. a3 {[%emt 0:02:13]} Ra8 {[%emt 0:06:30]} 19. Qd3 {[%emt 0:03:38]} Bxc3 {[%emt 0:04:55]} 20. Qxc3 {[%emt 0:03:35]} Ne4 {[%emt 0:01:45]} 21. Qc2 {[%emt 0:01:25]} Qh4 {[%emt 0:05:10]} 22. Nd3 {[%emt 0:05:53]} Rfc8 {[%emt 0:04:24]} 23. Qe2 {[%emt 0:01:26]} c5 {[%emt 0:02:00]} 24. g3 {[%emt 0:02:04]} Qf6 {[%emt 0:02:39]} 25. dxc5 {[%emt 0:01:38]} bxc5 {[%emt 0:00:32]} 26. f3 {[%emt 0:01:08]} c4 {[%emt 0:01:38]} 27. Nf4 {[%emt 0:01:05]} Nd6 {[%emt 0:01:39]} 28. Nxd5 {[%emt 0:00:32]} Qd8 {[%emt 0:00:24]} 29. Ke1 {[%emt 0:00:39]} Qa5+ {[%emt 0:00:28]} 30. Qd2 {[%emt 0:00:39]} Nb5 {[%emt 0:00:40]} 31. Qxa5 {[%emt 0:00:24]} 1-0

[Event "AUT-ch U14 Boys 2022"]
[Site "Sankt Veit an der Glan"]
[Date "2022.04.11"]
[Round "3"]
[White "Maier, Tobias"]
[Black "Winkelbauer, Christian"]
[Result "1-0"]
[ECO "C02"]
[WhiteElo "1388"]
[BlackElo "1577"]
[Annotator "NA RC"]
[PlyCount "53"]
[EventDate "2022.04.11"]
[EventType "swiss"]
[EventCountry "AUT"]
[SourceTitle "playchess.com"]
[Source "ChessBase"]
[SourceQuality "1"]
[TimeControl "5400+30"]

1. e4 {[%emt 0:00:01]} e6 {[%emt 0:00:01]} 2. d4 {[%emt 0:00:06]} d5 {[%emt 0:00:01]} 3. e5 {[%emt 0:00:06]} c5 {[%emt 0:00:05]} 4. c3 {[%emt 0:00:04]} Nc6 {[%emt 0:00:44]} 5. Nf3 {[%emt 0:00:09]} Bd7 {[%emt 0:01:43]} 6. Be2 {[%emt 0:00:28]} Be7 {[%emt 0:02:20]} 7. O-O {[%emt 0:01:11]} f6 {[%emt 0:00:50]} 8. Be3 {[%emt 0:03:33]} cxd4 {[%emt 0:03:26]} 9. cxd4 {[%emt 0:03:09]} Qc7 {[%emt 0:04:09]} 10. Nc3 {[%emt 0:25:17]} fxe5 {[%emt 0:03:55]} 11. Nb5 {[%emt 0:01:45]} Qb8 {[%emt 0:03:41]} 12. Nxe5 {[%emt 0:10:08]} Nxe5 {[%emt 0:03:59]} 13. dxe5 {[%emt 0:01:46]} a6 {[%emt 0:00:18]} 14. Nc3 {[%emt 0:00:37]} Bf8 {[%emt 0:08:18]} 15. f4 {[%emt 0:02:51]} Ne7 {[%emt 0:00:39]} 16. Bg4 {[%emt 0:16:08]} g6 {[%emt 0:04:51]} 17. Rc1 {[%emt 0:05:51]} Bh6 {[%emt 0:04:39]} 18. Bb6 {[%emt 0:09:54]} Nc6 {[%emt 0:05:36]} 19. Na4 {[%emt 0:01:12]} O-O {[%emt 0:02:46]} 20. Bc5 {[%emt 0:01:43]} Nxe5 {[%emt 0:10:32]} 21. Bxf8 {[%emt 0:03:54]} Bxa4 {[%emt 0:04:45]} 22. Qxa4 {[%emt 0:00:32]} Nxg4 {[%emt 0:00:40]} 23. Bxh6 {[%emt 0:00:24]} Nxh6 {[%emt 0:00:11]} 24. Qd7 {[%emt 0:00:20]} Qe8 {[%emt 0:04:14]} 25. Qxb7 {[%emt 0:00:20]} Rb8 {[%emt 0:00:28]} 26. Qxa6 {[%emt 0:00:19]} Rxb2 {[%emt 0:01:33]} 27. Rc8 {[%emt 0:00:15]} 1-0

[Event "AUT-ch U14 Boys 2022"]
[Site "Sankt Veit an der Glan"]
[Date "2022.04.11"]
[Round "3"]
[White "Feiertag, Jonas"]
[Black "Guba, Viktor"]
[Result "1-0"]
[ECO "E73"]
[WhiteElo "1289"]
[BlackElo "1598"]
[Annotator "NA RC"]
[PlyCount "53"]
[EventDate "2022.04.11"]
[EventType "swiss"]
[EventCountry "AUT"]
[SourceTitle "playchess.com"]
[Source "ChessBase"]
[SourceQuality "1"]
[TimeControl "5400+30"]

1. d4 {[%emt 0:00:12]} Nf6 {[%emt 0:00:17]} 2. c4 {[%emt 0:00:04]} g6 {[%emt 0:00:43]} 3. Nc3 {[%emt 0:00:04]} Bg7 {[%emt 0:00:35]} 4. e4 {[%emt 0:00:13]} O-O {[%emt 0:00:43]} 5. Be2 {[%emt 0:00:14]} d6 {[%emt 0:00:44]} 6. Be3 {[%emt 0:00:28]} e5 {[%emt 0:01:09]} 7. d5 {[%emt 0:00:08]} a5 {[%emt 0:01:14]} 8. g4 {[%emt 0:01:42]} Nfd7 {[%emt 0:04:47]} 9. h4 {[%emt 0:02:36]} Na6 {[%emt 0:03:43]} 10. h5 {[%emt 0:01:39]} Ndc5 {[%emt 0:02:48]} 11. hxg6 {[%emt 0:01:50]} fxg6 {[%emt 0:00:27]} 12. Nh3 {[%emt 0:00:19]} Qf6 {[%emt 0:05:26]} 13. Qd2 {[%emt 0:04:14]} Bd7 {[%emt 0:03:50]} 14. O-O-O {[%emt 0:09:13]} Na4 {[%emt 0:08:19]} 15. Nxa4 {[%emt 0:05:19]} Bxa4 {[%emt 0:00:07]} 16. Rdg1 {[%emt 0:00:02]} c6 {[%emt 0:01:31]} 17. Ng5 {[%emt 0:08:23]} h6 {[%emt 0:07:11]} 18. Ne6 {[%emt 0:01:44]} Nb4 {[%emt 0:03:10]} 19. a3 {[%emt 0:04:18]} cxd5 {[%emt 0:00:56]} 20. Nxf8 {[%emt 0:04:49]} d4 {[%emt 0:05:08]} 21. Bxh6 {[%emt 0:02:26]} d3 {[%emt 0:07:31]} 22. Bxg7 {[%emt 0:03:38]} Qxg7 {[%emt 0:00:19]} 23. Ne6 {[%emt 0:04:55]} Qf6 {[%emt 0:01:30]} 24. Bd1 {[%emt 0:00:28]} Qxe6 {[%emt 0:00:41]} 25. axb4 {[%emt 0:02:28]} axb4 {[%emt 0:01:04]} 26. Qxd3 {[%emt 0:00:37]} b5 {[%emt 0:03:14]} 27. Qd5 {[%emt 0:01:36]} 1-0

[Event "AUT-ch U14 Boys 2022"]
[Site "Sankt Veit an der Glan"]
[Date "2022.04.11"]
[Round "3"]
[White "Kienboeck, Samuel"]
[Black "Standhartinger, Joachim"]
[Result "0-1"]
[ECO "C45"]
[WhiteElo "1068"]
[BlackElo "1729"]
[Annotator "NA RC"]
[PlyCount "51"]
[EventDate "2022.04.11"]
[EventType "swiss"]
[EventCountry "AUT"]
[SourceTitle "playchess.com"]
[Source "ChessBase"]
[SourceQuality "1"]
[TimeControl "5400+30"]

1. e4 {[%emt 0:00:20]} e5 {[%emt 0:00:05]} 2. Nf3 {[%emt 0:00:08]} Nc6 {[%emt 0:00:04]} 3. d4 {[%emt 0:00:05]} exd4 {[%emt 0:00:18]} 4. Nxd4 {[%emt 0:00:04]} Qh4 {[%emt 0:05:17]} 5. Nc3 {[%emt 0:04:44]} Bb4 {[%emt 0:03:19]} 6. Ndb5 {[%emt 0:03:58]} Qxe4+ {[%emt 0:03:10]} 7. Qe2 {[%emt 0:01:11]} Qxe2+ {[%emt 0:04:44]} 8. Bxe2 {[%emt 0:00:14]} Ba5 {[%emt 0:03:39]} 9. Bd2 {[%emt 0:24:22]} Nge7 {[%emt 0:08:31]} 10. O-O-O {[%emt 0:05:40]} a6 {[%emt 0:04:23]} 11. Na3 {[%emt 0:02:25]} b5 {[%emt 0:01:30]} 12. Nd5 {[%emt 0:02:57]} Bxd2+ {[%emt 0:11:34]} 13. Rxd2 {[%emt 0:00:48]} Nxd5 {[%emt 0:00:19]} 14. Rxd5 {[%emt 0:00:09]} O-O {[%emt 0:00:57]} 15. Bf3 {[%emt 0:11:19]} Rb8 {[%emt 0:09:16]} 16. Kb1 {[%emt 0:05:04]} d6 {[%emt 0:03:18]} 17. c3 {[%emt 0:14:41]} Ne5 {[%emt 0:01:29]} 18. Be4 {[%emt 0:06:21]} Bb7 {[%emt 0:04:05]} 19. Rd4 {[%emt 0:01:50]} c5 {[%emt 0:00:41]} 20. Bxh7+ {[%emt 0:06:45]} Kxh7 {[%emt 0:00:31]} 21. Rh4+ {[%emt 0:01:49]} Kg8 {[%emt 0:00:15]} 22. f3 {[%emt 0:01:37]} Rbe8 {[%emt 0:02:54]} 23. Rd1 {[%emt 0:02:31]} d5 {[%emt 0:03:21]} 24. Nc2 {[%emt 0:00:33]} Ng6 {[%emt 0:01:04]} 25. Rg4 {[%emt 0:01:32]} Re2 {[%emt 0:01:21]} 26. Rf1 {[%emt 0:01:15]} 0-1

[Event "AUT-ch U14 Boys 2022"]
[Site "Sankt Veit an der Glan"]
[Date "2022.04.12"]
[Round "4.1"]
[White "Geroe, Leonhard"]
[Black "Wimmer, Michael"]
[Result "1/2-1/2"]
[ECO "C54"]
[WhiteElo "1935"]
[BlackElo "1753"]
[Annotator "RC"]
[PlyCount "73"]
[EventDate "2022.04.11"]
[EventType "swiss"]
[EventCountry "AUT"]
[SourceTitle "playchess.com"]
[Source "ChessBase"]
[SourceQuality "1"]
[TimeControl "5400+30"]

1. e4 {[%emt 0:00:04]} e5 {[%emt 0:00:13]} 2. Nf3 {[%emt 0:00:05]} Nc6 {[%emt 0:00:11]} 3. Bc4 {[%emt 0:00:44]} Bc5 {[%emt 0:00:22]} 4. c3 {[%emt 0:00:19]} Nf6 {[%emt 0:00:24]} 5. d4 {[%emt 0:00:36]} exd4 {[%emt 0:00:33]} 6. e5 {[%emt 0:00:10]} d5 {[%emt 0:00:20]} 7. Bb5 {[%emt 0:00:06]} Ne4 {[%emt 0:00:24]} 8. cxd4 {[%emt 0:00:17]} Bb4+ {[%emt 0:00:31]} 9. Bd2 {[%emt 0:00:17]} Nxd2 {[%emt 0:00:21]} 10. Nbxd2 {[%emt 0:00:08]} O-O {[%emt 0:00:51]} 11. Bxc6 {[%emt 0:10:40]} bxc6 {[%emt 0:00:22]} 12. O-O {[%emt 0:00:41]} c5 {[%emt 0:03:27]} 13. a3 {[%emt 0:09:16]} Bxd2 {[%emt 0:03:16]} 14. Qxd2 {[%emt 0:01:59]} c4 {[%emt 0:03:01]} 15. b3 {[%emt 0:03:41]} cxb3 {[%emt 0:11:40]} 16. Rfb1 {[%emt 0:02:48]} Rb8 {[%emt 0:14:06]} 17. Qc3 {[%emt 0:02:38]} Ba6 {[%emt 0:03:20]} 18. Rxb3 {[%emt 0:00:43]} Rb6 {[%emt 0:04:13]} 19. Rc1 {[%emt 0:07:06]} Qb8 {[%emt 0:04:07]} 20. Nd2 {[%emt 0:07:59]} Rc8 {[%emt 0:13:55]} 21. Rcb1 {[%emt 0:10:45]} Qb7 {[%emt 0:04:28]} 22. a4 {[%emt 0:07:19]} Qc6 {[%emt 0:04:11]} 23. Qxc6 {[%emt 0:12:25]} Rxc6 {[%emt 0:00:08]} 24. f4 {[%emt 0:04:42]} Kf8 {[%emt 0:09:03]} 25. Kf2 {[%emt 0:02:27]} Ke7 {[%emt 0:02:53]} 26. Ke3 {[%emt 0:06:57]} Rc2 {[%emt 0:01:55]} 27. R1b2 {[%emt 0:03:23]} Rc1 {[%emt 0:01:30]} 28. Rb1 {[%emt 0:01:07]} Rc2 {[%emt 0:00:48]} 29. R1b2 {[%emt 0:00:40]} Rc1 {[%emt 0:02:31]} 30. Rb8 {[%emt 0:02:19]} Rxb8 {[%emt 0:01:01]} 31. Rxb8 {[%emt 0:00:07]} Rc3+ {[%emt 0:00:53]} 32. Kf2 {[%emt 0:00:12]} Rc2 {[%emt 0:00:58]} 33. Ke3 {[%emt 0:00:17]} Rc3+ {[%emt 0:07:25]} 34. Kf2 {[%emt 0:00:17]} Rc2 {[%emt 0:00:23]} 35. Ke1 {[%emt 0:00:13]} Rc1+ {[%emt 0:00:20]} 36. Kf2 {[%emt 0:00:08]} Rc2 37. Rb3 1/2-1/2

[Event "AUT-ch U14 Boys 2022"]
[Site "Sankt Veit an der Glan"]
[Date "2022.04.12"]
[Round "4.2"]
[White "Nguyen, Le Minh Phu"]
[Black "Leitgeb, Julian"]
[Result "1-0"]
[ECO "E04"]
[WhiteElo "2080"]
[BlackElo "2004"]
[Annotator "RC"]
[PlyCount "79"]
[EventDate "2022.04.11"]
[EventType "swiss"]
[EventCountry "AUT"]
[SourceTitle "playchess.com"]
[Source "ChessBase"]
[SourceQuality "1"]
[TimeControl "5400+30"]

1. g3 {[%emt 0:00:07]} Nf6 {[%emt 0:00:09]} 2. Bg2 {[%emt 0:00:08]} d5 {[%emt 0:00:10]} 3. c4 {[%emt 0:00:06]} e6 {[%emt 0:00:14]} 4. d4 {[%emt 0:01:56]} dxc4 {[%emt 0:00:21]} 5. Nf3 {[%emt 0:03:34]} a6 {[%emt 0:01:50]} 6. O-O {[%emt 0:05:56]} Nc6 {[%emt 0:00:21]} 7. Bg5 {[%emt 0:03:13]} Be7 {[%emt 0:03:41]} 8. e3 {[%emt 0:06:06]} Bd7 {[%emt 0:05:11]} 9. Nc3 {[%emt 0:21:48]} Rb8 {[%emt 0:09:30]} 10. Ne5 {[%emt 0:17:49]} Nxe5 {[%emt 0:08:15]} 11. dxe5 {[%emt 0:00:06]} Nd5 {[%emt 0:01:54]} 12. Bxe7 {[%emt 0:00:08]} Qxe7 {[%emt 0:03:36]} 13. Nxd5 {[%emt 0:00:26]} exd5 {[%emt 0:00:04]} 14. Qxd5 {[%emt 0:00:08]} O-O {[%emt 0:09:04]} 15. Rfd1 {[%emt 0:05:10]} Rfd8 {[%emt 0:07:39]} 16. Qxc4 {[%emt 0:01:38]} Be6 {[%emt 0:06:54]} 17. Rxd8+ {[%emt 0:02:03]} Rxd8 {[%emt 0:00:15]} 18. Qc3 {[%emt 0:00:11]} c6 {[%emt 0:00:30]} 19. a4 {[%emt 0:08:09]} Bd5 {[%emt 0:03:12]} 20. Rd1 {[%emt 0:00:52]} Bxg2 {[%emt 0:00:45]} 21. Rxd8+ {[%emt 0:00:06]} Qxd8 {[%emt 0:00:03]} 22. Kxg2 {[%emt 0:00:05]} Qd5+ {[%emt 0:00:14]} 23. f3 {[%emt 0:05:37]} Qd1 {[%emt 0:02:04]} 24. Qd4 {[%emt 0:00:12]} Qe2+ {[%emt 0:01:16]} 25. Kh3 h5 {[%emt 0:01:07]} 26. Qf4 {[%emt 0:04:27]} Qxb2 {[%emt 0:01:43]} 27. Qf5 Qb3 28. a5 {[%emt 0:07:19]} c5 {[%emt 0:04:17]} 29. Qc8+ {[%emt 0:00:09]} Kh7 {[%emt 0:00:09]} 30. Qxc5 {[%emt 0:00:15]} g6 {[%emt 0:06:43]} 31. Qe7 {[%emt 0:01:39]} Kh6 {[%emt 0:04:36]} 32. Kh4 {[%emt 0:00:50]} Qc4+ {[%emt 0:02:00]} 33. f4 {[%emt 0:00:37]} Qd5 {[%emt 0:02:06]} 34. e4 {[%emt 0:00:36]} Qb3 {[%emt 0:00:37]} 35. Qf8+ {[%emt 0:01:45]} Kh7 {[%emt 0:00:02]} 36. Kg5 {[%emt 0:00:08]} Qc4 {[%emt 0:01:15]} 37. Qe7 {[%emt 0:00:18]} Kg7 {[%emt 0:00:36]} 38. Qf6+ {[%emt 0:00:59]} Kh7 {[%emt 0:00:06]} 39. e6 {[%emt 0:00:12]} Qc5+ {[%emt 0:01:37]} 40. e5 1-0

[Event "AUT-ch U14 Boys 2022"]
[Site "Sankt Veit an der Glan"]
[Date "2022.04.12"]
[Round "4.3"]
[White "Ernst, Robert"]
[Black "Maier, Tobias"]
[Result "1-0"]
[ECO "E81"]
[WhiteElo "1792"]
[BlackElo "1388"]
[Annotator "NA RC"]
[PlyCount "75"]
[EventDate "2022.04.11"]
[EventType "swiss"]
[EventCountry "AUT"]
[SourceTitle "playchess.com"]
[Source "ChessBase"]
[SourceQuality "1"]
[TimeControl "5400+30"]

1. d4 {[%emt 0:00:01]} Nf6 {[%emt 0:00:20]} 2. c4 {[%emt 0:00:09]} g6 {[%emt 0:00:08]} 3. Nc3 {[%emt 0:00:09]} Bg7 {[%emt 0:00:07]} 4. e4 {[%emt 0:00:08]} d6 {[%emt 0:00:11]} 5. f3 {[%emt 0:00:10]} O-O {[%emt 0:01:25]} 6. Be3 {[%emt 0:00:07]} Nbd7 {[%emt 0:03:02]} 7. Qd2 {[%emt 0:00:47]} c5 {[%emt 0:01:07]} 8. d5 {[%emt 0:01:20]} a6 {[%emt 0:23:02]} 9. Bd3 {[%emt 0:07:56]} Ne5 {[%emt 0:02:28]} 10. Rb1 {[%emt 0:03:55]} Nxd3+ {[%emt 0:01:07]} 11. Qxd3 {[%emt 0:00:09]} Ne8 {[%emt 0:08:26]} 12. Nge2 {[%emt 0:15:05]} f5 {[%emt 0:09:56]} 13. O-O {[%emt 0:00:29]} fxe4 {[%emt 0:01:46]} 14. fxe4 {[%emt 0:02:10]} Nf6 {[%emt 0:01:26]} 15. e5 {[%emt 0:08:29]} dxe5 {[%emt 0:03:22]} 16. Ng3 {[%emt 0:01:33]} b6 {[%emt 0:00:43]} 17. b4 {[%emt 0:00:49]} e4 {[%emt 0:13:33]} 18. Ncxe4 {[%emt 0:01:11]} Nxe4 {[%emt 0:00:25]} 19. Rxf8+ {[%emt 0:03:36]} Qxf8 {[%emt 0:02:13]} 20. Qxe4 {[%emt 0:00:08]} Bf5 {[%emt 0:14:19]} 21. Nxf5 {[%emt 0:00:10]} Qxf5 {[%emt 0:00:18]} 22. Qxf5 {[%emt 0:00:23]} gxf5 {[%emt 0:00:04]} 23. bxc5 {[%emt 0:00:14]} bxc5 {[%emt 0:00:48]} 24. Rb6 {[%emt 0:02:37]} Bd4 {[%emt 0:01:45]} 25. Kf2 {[%emt 0:00:21]} Kf7 {[%emt 0:01:20]} 26. Bxd4 {[%emt 0:00:21]} cxd4 {[%emt 0:00:08]} 27. Ke2 {[%emt 0:00:03]} Rg8 {[%emt 0:01:09]} 28. g3 {[%emt 0:00:06]} f4 {[%emt 0:00:20]} 29. Kd3 {[%emt 0:01:25]} fxg3 {[%emt 0:00:44]} 30. hxg3 {[%emt 0:00:01]} Rxg3+ {[%emt 0:00:07]} 31. Kxd4 {[%emt 0:00:04]} Ra3 {[%emt 0:00:06]} 32. Rb2 {[%emt 0:03:15]} Ra5 {[%emt 0:09:06]} 33. c5 {[%emt 0:04:10]} Rb5 {[%emt 0:00:41]} 34. Rxb5 {[%emt 0:07:10]} axb5 {[%emt 0:00:05]} 35. c6 {[%emt 0:00:07]} Ke8 {[%emt 0:00:16]} 36. Ke5 {[%emt 0:00:06]} Kd8 {[%emt 0:00:22]} 37. Ke6 {[%emt 0:00:11]} h5 {[%emt 0:00:10]} 38. c7+ 1-0

[Event "AUT-ch U14 Boys 2022"]
[Site "Sankt Veit an der Glan"]
[Date "2022.04.12"]
[Round "4.4"]
[White "Haselsberger, Armin"]
[Black "Feiertag, Jonas"]
[Result "1/2-1/2"]
[ECO "D30"]
[WhiteElo "1541"]
[BlackElo "1289"]
[Annotator "NA RC"]
[PlyCount "73"]
[EventDate "2022.04.11"]
[EventType "swiss"]
[EventCountry "AUT"]
[SourceTitle "playchess.com"]
[Source "ChessBase"]
[SourceQuality "1"]
[TimeControl "5400+30"]

1. d4 {[%emt 0:00:37]} d5 {[%emt 0:00:42]} 2. c4 {[%emt 0:00:44]} e6 {[%emt 0:01:41]} 3. Nf3 {[%emt 0:01:03]} Nf6 {[%emt 0:00:29]} 4. g3 {[%emt 0:00:53]} Nbd7 {[%emt 0:01:13]} 5. Bg2 {[%emt 0:02:00]} b6 {[%emt 0:02:21]} 6. O-O {[%emt 0:02:55]} Bb7 {[%emt 0:00:21]} 7. Nbd2 {[%emt 0:07:56]} Be7 {[%emt 0:01:24]} 8. b3 {[%emt 0:05:31]} O-O {[%emt 0:01:11]} 9. Bb2 {[%emt 0:01:58]} c5 {[%emt 0:04:52]} 10. e3 {[%emt 0:10:03]} Rc8 {[%emt 0:04:47]} 11. Ne5 {[%emt 0:04:23]} Ba6 {[%emt 0:04:52]} 12. Rc1 {[%emt 0:04:43]} cxd4 {[%emt 0:08:06]} 13. exd4 {[%emt 0:00:18]} Bb4 {[%emt 0:08:20]} 14. a3 {[%emt 0:21:31]} Bxd2 {[%emt 0:03:09]} 15. Qxd2 {[%emt 0:01:14]} Nxe5 {[%emt 0:01:24]} 16. dxe5 {[%emt 0:00:10]} Nd7 {[%emt 0:00:13]} 17. Rfd1 {[%emt 0:00:16]} Nc5 {[%emt 0:05:01]} 18. Qe3 {[%emt 0:04:30]} Rc7 {[%emt 0:19:20]} 19. cxd5 {[%emt 0:01:25]} exd5 {[%emt 0:00:26]} 20. Rxd5 {[%emt 0:03:31]} Rd7 {[%emt 0:02:37]} 21. Rcd1 {[%emt 0:00:48]} Rxd5 {[%emt 0:00:38]} 22. Bxd5 {[%emt 0:01:21]} Qe7 {[%emt 0:00:20]} 23. Bd4 {[%emt 0:03:39]} Ne6 {[%emt 0:02:55]} 24. Bb2 {[%emt 0:01:59]} Rd8 {[%emt 0:03:01]} 25. Bf3 {[%emt 0:01:22]} Nc5 {[%emt 0:02:09]} 26. Qc3 {[%emt 0:06:55]} Rxd1+ {[%emt 0:06:25]} 27. Bxd1 {[%emt 0:00:08]} Bb7 {[%emt 0:06:45]} 28. Bf3 {[%emt 0:03:29]} h6 {[%emt 0:00:38]} 29. Kg2 {[%emt 0:03:09]} Ne4 {[%emt 0:01:55]} 30. Qd4 {[%emt 0:02:11]} Ng5 {[%emt 0:00:49]} 31. Bd5 {[%emt 0:01:40]} Qd7 {[%emt 0:01:17]} 32. Bxb7 {[%emt 0:00:25]} Qxb7+ {[%emt 0:00:01]} 33. Kf1 {[%emt 0:00:20]} Qh1+ {[%emt 0:00:25]} 34. Ke2 {[%emt 0:00:14]} Qf3+ {[%emt 0:00:08]} 35. Ke1 {[%emt 0:00:58]} Qh1+ {[%emt 0:00:47]} 36. Ke2 {[%emt 0:00:06]} Qf3+ {[%emt 0:00:04]} 37. Ke1 {[%emt 0:00:15]} 1/2-1/2

[Event "AUT-ch U14 Boys 2022"]
[Site "Sankt Veit an der Glan"]
[Date "2022.04.12"]
[Round "4.5"]
[White "Pavlov, Alexander"]
[Black "Radnaev, Nomin"]
[Result "1/2-1/2"]
[ECO "B44"]
[WhiteElo "1751"]
[BlackElo "1766"]
[Annotator "NA RC"]
[PlyCount "84"]
[EventDate "2022.04.11"]
[EventType "swiss"]
[EventCountry "AUT"]
[SourceTitle "playchess.com"]
[Source "ChessBase"]
[SourceQuality "1"]
[TimeControl "5400+30"]

1. e4 {[%emt 0:00:02]} c5 {[%emt 0:00:07]} 2. Nf3 {[%emt 0:00:11]} e6 {[%emt 0:00:34]} 3. d4 {[%emt 0:00:08]} cxd4 {[%emt 0:00:06]} 4. Nxd4 {[%emt 0:00:06]} Nc6 {[%emt 0:00:20]} 5. Be3 {[%emt 0:00:36]} Qc7 {[%emt 0:07:25]} 6. a3 {[%emt 0:00:24]} a6 {[%emt 0:00:16]} 7. Be2 {[%emt 0:00:19]} Nf6 {[%emt 0:00:36]} 8. Nc3 {[%emt 0:00:06]} b5 {[%emt 0:00:45]} 9. O-O {[%emt 0:03:09]} Bb7 {[%emt 0:00:27]} 10. Kh1 {[%emt 0:04:38]} Nxd4 {[%emt 0:12:12]} 11. Qxd4 {[%emt 0:02:38]} Bd6 {[%emt 0:05:00]} 12. h3 {[%emt 0:09:06]} Be5 {[%emt 0:04:01]} 13. Qd3 {[%emt 0:09:59]} Bxc3 {[%emt 0:01:00]} 14. Qxc3 {[%emt 0:01:41]} Qxc3 {[%emt 0:02:05]} 15. bxc3 {[%emt 0:00:04]} Bxe4 {[%emt 0:11:38]} 16. a4 {[%emt 0:03:14]} bxa4 {[%emt 0:11:08]} 17. Bd3 {[%emt 0:08:00]} Bc6 {[%emt 0:11:58]} 18. Bc5 {[%emt 0:05:35]} Nd5 {[%emt 0:03:51]} 19. Be4 {[%emt 0:02:26]} Nxc3 {[%emt 0:06:39]} 20. Bxc6 {[%emt 0:00:12]} dxc6 {[%emt 0:00:08]} 21. Bd4 {[%emt 0:00:40]} Nb5 {[%emt 0:04:13]} 22. Bxg7 {[%emt 0:02:45]} Rg8 {[%emt 0:00:04]} 23. Be5 {[%emt 0:00:46]} Ke7 {[%emt 0:00:53]} 24. c4 {[%emt 0:03:09]} Nd6 {[%emt 0:00:08]} 25. Rxa4 {[%emt 0:03:57]} f6 {[%emt 0:02:21]} 26. Bf4 {[%emt 0:00:36]} e5 {[%emt 0:00:26]} 27. Be3 {[%emt 0:00:30]} Rgb8 {[%emt 0:05:08]} 28. Rfa1 {[%emt 0:03:44]} h5 {[%emt 0:00:55]} 29. Rxa6 {[%emt 0:06:52]} Rxa6 {[%emt 0:01:06]} 30. Rxa6 {[%emt 0:00:10]} Nxc4 {[%emt 0:00:17]} 31. Rxc6 {[%emt 0:00:17]} Nxe3 {[%emt 0:00:42]} 32. fxe3 {[%emt 0:00:17]} Rb3 {[%emt 0:00:13]} 33. Rc7+ {[%emt 0:00:42]} Ke6 {[%emt 0:00:04]} 34. Rh7 {[%emt 0:00:09]} Rxe3 {[%emt 0:00:12]} 35. Rxh5 {[%emt 0:00:14]} f5 {[%emt 0:00:37]} 36. Kg1 {[%emt 0:01:38]} Re2 {[%emt 0:00:54]} 37. Rh8 {[%emt 0:01:04]} e4 {[%emt 0:00:33]} 38. h4 {[%emt 0:01:20]} e3 {[%emt 0:00:36]} 39. Re8+ {[%emt 0:01:42]} Kf6 {[%emt 0:00:27]} 40. Kf1 {[%emt 0:01:22]} Rf2+ {[%emt 0:00:26]} 41. Kg1 {[%emt 0:00:28]} f4 {[%emt 0:00:05]} 42. g3 {[%emt 0:01:33]} Rf3 1/2-1/2

[Event "AUT-ch U14 Boys 2022"]
[Site "Sankt Veit an der Glan"]
[Date "2022.04.12"]
[Round "4.6"]
[White "Schwarz, Felix"]
[Black "Jetzl, Julian"]
[Result "0-1"]
[ECO "A05"]
[WhiteElo "1831"]
[BlackElo "1868"]
[Annotator "NA RC"]
[PlyCount "80"]
[EventDate "2022.04.11"]
[EventType "swiss"]
[EventCountry "AUT"]
[SourceTitle "playchess.com"]
[Source "ChessBase"]
[SourceQuality "1"]
[TimeControl "5400+30"]

1. Nf3 {[%emt 0:00:15]} Nf6 {[%emt 0:00:10]} 2. e3 {[%emt 0:00:05]} g6 {[%emt 0:00:17]} 3. c4 {[%emt 0:00:29]} Bg7 {[%emt 0:00:21]} 4. d4 {[%emt 0:00:09]} O-O {[%emt 0:00:25]} 5. b3 {[%emt 0:00:14]} c5 {[%emt 0:00:46]} 6. Bb2 {[%emt 0:00:08]} cxd4 {[%emt 0:00:41]} 7. Nxd4 {[%emt 0:00:30]} d5 {[%emt 0:02:37]} 8. Nf3 {[%emt 0:01:26]} e6 {[%emt 0:09:26]} (8... Bg4 $15) 9. Qc2 {[%emt 0:09:30]} Nc6 {[%emt 0:04:03]} 10. Be2 {[%emt 0:02:59]} Re8 {[%emt 0:02:59]} 11. O-O {[%emt 0:01:36]} Qc7 {[%emt 0:15:45]} (11... e5 $11) 12. Rd1 {[%emt 0:02:06]} Qd6 {[%emt 0:07:27]} 13. Nc3 {[%emt 0:02:50]} b6 {[%emt 0:07:16]} 14. Nb5 {[%emt 0:05:03]} Qd7 {[%emt 0:00:58]} 15. Ne5 {[%emt 0:01:49]} Nxe5 {[%emt 0:07:34]} 16. Bxe5 {[%emt 0:00:25]} Rd8 {[%emt 0:03:42]} 17. Nc7 {[%emt 0:00:48]} Ne4 {[%emt 0:00:57]} 18. Bxg7 {[%emt 0:00:56]} Qxc7 {[%emt 0:00:24]} 19. Bb2 {[%emt 0:00:30]} e5 {[%emt 0:08:38]} 20. Bf3 {[%emt 0:04:07]} ({Better is} 20. f3 $18 Nf6 21. Qc3) 20... Bf5 {[%emt 0:00:36]} 21. g4 {[%emt 0:02:19] [#]} Ng5 $1 {[%emt 0:03:06]} 22. Qe2 {[%emt 0:02:35]} Be4 {[%emt 0:01:27]} 23. Bxe4 {[%emt 0:00:49]} dxe4 {[%emt 0:00:08]} 24. Rd5 $19 {[%emt 0:13:42]} (24. Kf1 $17) 24... Nf3+ {[%emt 0:01:07]} 25. Kg2 {[%emt 0:01:16]} Rxd5 {[%emt 0:02:55]} 26. cxd5 {[%emt 0:00:32]} Qd7 {[%emt 0:01:46]} 27. Qc4 {[%emt 0:01:25]} Qxg4+ {[%emt 0:00:59]} 28. Kh1 {[%emt 0:00:12]} Qh3 {[%emt 0:02:51]} 29. Bxe5 {[%emt 0:00:09]} Nxe5 {[%emt 0:00:26]} 30. Qxe4 {[%emt 0:00:07]} Ng4 {[%emt 0:02:22]} 31. Qf4 {[%emt 0:01:26]} Qh4 {[%emt 0:00:21]} 32. Kg2 {[%emt 0:03:25]} g5 {[%emt 0:00:11]} 33. Qf3 {[%emt 0:01:27]} Qxh2+ {[%emt 0:01:16]} 34. Kf1 {[%emt 0:00:07]} Qe5 {[%emt 0:00:23]} 35. Qd1 {[%emt 0:02:02]} Qf6 {[%emt 0:00:48]} 36. Ke2 {[%emt 0:03:02]} Qxf2+ {[%emt 0:00:36]} 37. Kd3 {[%emt 0:00:08]} Qxe3+ {[%emt 0:00:14]} 38. Kc2 {[%emt 0:00:14]} Rc8+ {[%emt 0:00:19]} 39. Kb2 {[%emt 0:00:27]} Qc3+ {[%emt 0:00:04]} 40. Ka3 {[%emt 0:00:10]} Ne3 {[%emt 0:00:30]} 0-1